[Event "Titled Tuesday Blitz March 07 Late 2023"]
[White "Karas, Marek"]
[Black "Nunez V, Gustavo Eduardo"]
[WhiteFideId "14928558"]
[BlackFideId "4403690"]
[WhiteElo "2233"]
[BlackElo "2228"]
[Result "0-1"]
[Round "08"]
[TimeControl "180+2"]
[Date "2023.03.07"]
[WhiteClock "0:00:02"]
[BlackClock "0:00:23"]

1. d4 {[%clk 0:02:59]}  Nf6 {[%clk 0:02:58]} 2. Nc3 {[%clk 0:02:59]}  g6 {[%clk 0:02:58]} 3. e4 {[%clk 0:02:59]}  d6 {[%clk 0:02:58]} 4. Bf4 {[%clk 0:02:55]}  Bg7 {[%clk 0:02:59]} 5. Qd2 {[%clk 0:02:56]}  h6 {[%clk 0:02:54]} 6. O-O-O {[%clk 0:02:54]}  g5 {[%clk 0:02:54]} 7. Bg3 {[%clk 0:02:52]}  Nh5 {[%clk 0:02:55]} 8. Be2 {[%clk 0:02:50]}  Nxg3 {[%clk 0:02:53]} 9. hxg3 {[%clk 0:02:51]}  Nc6 {[%clk 0:02:53]} 10. Bb5 {[%clk 0:02:45]}  Bd7 {[%clk 0:02:52]} 11. Nge2 {[%clk 0:02:44]}  a6 {[%clk 0:02:50]} 12. Ba4 {[%clk 0:02:40]}  b5 {[%clk 0:02:49]} 13. Bb3 {[%clk 0:02:39]}  a5 {[%clk 0:02:47]} 14. a4 {[%clk 0:02:35]}  b4 {[%clk 0:02:29]} 15. Nd5 {[%clk 0:02:34]}  e6 {[%clk 0:02:19]} 16. Ne3 {[%clk 0:02:33]}  Qf6 {[%clk 0:02:17]} 17. f4 {[%clk 0:02:30]}  O-O-O {[%clk 0:02:09]} 18. Qd3 {[%clk 0:02:22]}  Nb8 {[%clk 0:02:08]} 19. Nc4 {[%clk 0:02:16]}  d5 {[%clk 0:02:02]} 20. Ne5 {[%clk 0:02:07]}  Bc6 {[%clk 0:01:55]} 21. exd5 {[%clk 0:01:58]}  Bxd5 {[%clk 0:01:52]} 22. Bxd5 {[%clk 0:01:49]}  Rxd5 {[%clk 0:01:53]} 23. Kb1 {[%clk 0:01:45]}  Rhd8 {[%clk 0:01:51]} 24. c4 {[%clk 0:01:40]}  bxc3 {[%clk 0:01:50]} 25. Nxc3 {[%clk 0:01:40]}  Rxd4 {[%clk 0:01:49]} 26. Qxd4 {[%clk 0:01:36]}  Rxd4 {[%clk 0:01:50]} 27. Rxd4 {[%clk 0:01:36]}  Qf5+ {[%clk 0:01:49]} 28. Re4 {[%clk 0:01:30]}  f6 {[%clk 0:01:39]} 29. Nc4 {[%clk 0:01:25]}  Qc5 {[%clk 0:01:33]} 30. Na3 {[%clk 0:01:03]}  f5 {[%clk 0:01:26]} 31. Rc4 {[%clk 0:00:48]}  Qf2 {[%clk 0:01:22]} 32. fxg5 {[%clk 0:00:44]}  h5 {[%clk 0:01:22]} 33. Rxh5 {[%clk 0:00:41]}  Qxg3 {[%clk 0:01:11]} 34. Nab5 {[%clk 0:00:33]}  c6 {[%clk 0:01:00]} 35. Na3 {[%clk 0:00:23]}  Qxg2 {[%clk 0:00:55]} 36. Ka2 {[%clk 0:00:18]}  Kb7 {[%clk 0:00:52]} 37. Rh7 {[%clk 0:00:13]}  Qxg5 {[%clk 0:00:52]} 38. Rch4 {[%clk 0:00:12]}  Ka6 {[%clk 0:00:48]} 39. R4h5 {[%clk 0:00:10]}  Qf6 {[%clk 0:00:48]} 40. Nc4 {[%clk 0:00:08]}  e5 {[%clk 0:00:41]} 41. Ne3 {[%clk 0:00:04]}  f4 {[%clk 0:00:35]} 42. Nf5 {[%clk 0:00:04]}  Bf8 {[%clk 0:00:35]} 43. Kb1 {[%clk 0:00:03]}  e4 {[%clk 0:00:30]} 44. Nxe4 {[%clk 0:00:02]}  Qe6 {[%clk 0:00:27]} 45. Nc3 {[%clk 0:00:02]}  f3 {[%clk 0:00:23]} 0-1


[Site "https://www.chess.com"]

[Event "Titled Tuesday Blitz March 07 Late 2023"]
[White "ArchibaldCerveza29"]
[Black "Avalos Parra, Joao"]
[BlackFideId "3402541"]
[WhiteElo "2481"]
[BlackElo "2173"]
[Result "1-0"]
[Round "08"]
[TimeControl "180+2"]
[Date "2023.03.07"]
[WhiteClock "0:01:50"]
[BlackClock "0:01:03"]

1. e4 {[%clk 0:03:00]}  e5 {[%clk 0:02:59]} 2. Nf3 {[%clk 0:03:01]}  Nc6 {[%clk 0:02:59]} 3. Bc4 {[%clk 0:03:01]}  Bc5 {[%clk 0:02:59]} 4. O-O {[%clk 0:03:02]}  Nf6 {[%clk 0:02:58]} 5. d4 {[%clk 0:03:02]}  Bxd4 {[%clk 0:02:58]} 6. Nxd4 {[%clk 0:03:03]}  Nxd4 {[%clk 0:02:58]} 7. Bg5 {[%clk 0:03:03]}  d6 {[%clk 0:02:48]} 8. f4 {[%clk 0:03:03]}  Be6 {[%clk 0:02:44]} 9. Na3 {[%clk 0:03:01]}  h6 {[%clk 0:02:40]} 10. Bh4 {[%clk 0:03:00]}  Nc6 {[%clk 0:02:02]} 11. Bxe6 {[%clk 0:02:52]}  fxe6 {[%clk 0:01:59]} 12. fxe5 {[%clk 0:02:52]}  Nxe5 {[%clk 0:01:57]} 13. Bxf6 {[%clk 0:02:50]}  gxf6 {[%clk 0:01:55]} 14. Qh5+ {[%clk 0:02:51]}  Ke7 {[%clk 0:01:52]} 15. Nb5 {[%clk 0:02:38]}  a6 {[%clk 0:01:43]} 16. Nd4 {[%clk 0:02:37]}  Qg8 {[%clk 0:01:29]} 17. Qh3 {[%clk 0:02:18]}  Qg4 {[%clk 0:01:20]} 18. Qb3 {[%clk 0:02:15]}  Rhg8 {[%clk 0:01:12]} 19. Rf2 {[%clk 0:02:10]}  Qxe4 {[%clk 0:01:10]} 20. Qxe6+ {[%clk 0:02:10]}  Kd8 {[%clk 0:01:05]} 21. Qxg8+ {[%clk 0:02:09]}  Kd7 {[%clk 0:01:05]} 22. Qxa8 {[%clk 0:01:57]}  Qxd4 {[%clk 0:01:03]} 23. Re1 {[%clk 0:01:50]} 1-0


[Site "https://www.chess.com"]

[Event "Titled Tuesday Blitz March 07 Late 2023"]
[White "Prydun, Andriy"]
[Black "Zampronha, Wladimir Camilo"]
[WhiteFideId "14145898"]
[BlackFideId "2103087"]
[WhiteElo "2164"]
[BlackElo "2176"]
[Result "1-0"]
[Round "08"]
[TimeControl "180+2"]
[Date "2023.03.07"]
[WhiteClock "0:00:23"]
[BlackClock "0:01:02"]

1. e4 {[%clk 0:03:00]}  c5 {[%clk 0:02:59]} 2. Ne2 {[%clk 0:02:59]}  e6 {[%clk 0:03:00]} 3. Ng3 {[%clk 0:02:59]}  d5 {[%clk 0:02:59]} 4. Bd3 {[%clk 0:03:00]}  c4 {[%clk 0:02:59]} 5. Be2 {[%clk 0:03:00]}  Nf6 {[%clk 0:02:56]} 6. exd5 {[%clk 0:02:58]}  exd5 {[%clk 0:02:57]} 7. O-O {[%clk 0:02:57]}  Nc6 {[%clk 0:02:56]} 8. b3 {[%clk 0:02:54]}  cxb3 {[%clk 0:02:55]} 9. axb3 {[%clk 0:02:54]}  Be7 {[%clk 0:02:55]} 10. Bb2 {[%clk 0:02:50]}  O-O {[%clk 0:02:55]} 11. Na3 {[%clk 0:02:45]}  Be6 {[%clk 0:02:51]} 12. Nb5 {[%clk 0:02:45]}  Qd7 {[%clk 0:02:48]} 13. Nd4 {[%clk 0:02:44]}  Nxd4 {[%clk 0:02:46]} 14. Bxd4 {[%clk 0:02:44]}  a6 {[%clk 0:02:46]} 15. Bd3 {[%clk 0:02:37]}  Rac8 {[%clk 0:02:44]} 16. Nh5 {[%clk 0:02:35]}  Nxh5 {[%clk 0:02:43]} 17. Qxh5 {[%clk 0:02:34]}  f5 {[%clk 0:02:30]} 18. Rfe1 {[%clk 0:02:19]}  Bf6 {[%clk 0:02:28]} 19. c3 {[%clk 0:02:05]}  Bxd4 {[%clk 0:02:26]} 20. cxd4 {[%clk 0:02:06]}  g6 {[%clk 0:02:25]} 21. Qg5 {[%clk 0:02:03]}  Bf7 {[%clk 0:02:24]} 22. Re7 {[%clk 0:02:01]}  Qd6 {[%clk 0:02:18]} 23. Rxb7 {[%clk 0:01:42]}  Rb8 {[%clk 0:02:08]} 24. Rxa6 {[%clk 0:01:39]}  Qd8 {[%clk 0:01:51]} 25. Qxd8 {[%clk 0:01:37]}  Rfxd8 {[%clk 0:01:52]} 26. Raa7 {[%clk 0:01:29]}  Rxb7 {[%clk 0:01:46]} 27. Rxb7 {[%clk 0:01:30]}  Ra8 {[%clk 0:01:44]} 28. Kf1 {[%clk 0:01:27]}  Ra2 {[%clk 0:01:41]} 29. Ke2 {[%clk 0:01:25]}  Kg7 {[%clk 0:01:31]} 30. b4 {[%clk 0:01:23]}  Kf6 {[%clk 0:01:30]} 31. b5 {[%clk 0:01:22]}  g5 {[%clk 0:01:31]} 32. Rb6+ {[%clk 0:01:07]}  Ke7 {[%clk 0:01:28]} 33. Bxf5 {[%clk 0:01:00]}  Ra4 {[%clk 0:01:28]} 34. Rh6 {[%clk 0:00:53]}  Rxd4 {[%clk 0:01:26]} 35. Rxh7 {[%clk 0:00:52]}  Kf6 {[%clk 0:01:27]} 36. g4 {[%clk 0:00:44]}  Rb4 {[%clk 0:01:25]} 37. h4 {[%clk 0:00:41]}  gxh4 {[%clk 0:01:21]} 38. b6 {[%clk 0:00:41]}  h3 {[%clk 0:01:02]} 39. Rxh3 {[%clk 0:00:24]}  Rxb6 {[%clk 0:01:02]} 40. Rh6+ {[%clk 0:00:23]} 1-0


[Site "https://www.chess.com"]

[Event "Titled Tuesday Blitz March 07 Late 2023"]
[White "Yeritsyan, Hayk"]
[Black "Kukavica, Tony"]
[WhiteFideId "13307320"]
[BlackFideId "2062542"]
[WhiteElo "2455"]
[BlackElo "1993"]
[Result "1-0"]
[Round "08"]
[TimeControl "180+2"]
[Date "2023.03.07"]
[WhiteClock "0:00:40"]
[BlackClock "0:01:10"]

1. d4 {[%clk 0:03:00]}  d5 {[%clk 0:02:59]} 2. Nf3 {[%clk 0:03:01]}  Nf6 {[%clk 0:02:58]} 3. e3 {[%clk 0:03:02]}  e6 {[%clk 0:02:58]} 4. Bd3 {[%clk 0:03:02]}  h6 {[%clk 0:02:56]} 5. Ne5 {[%clk 0:03:02]}  c5 {[%clk 0:02:51]} 6. c3 {[%clk 0:03:01]}  Nfd7 {[%clk 0:02:48]} 7. f4 {[%clk 0:03:01]}  Be7 {[%clk 0:02:41]} 8. O-O {[%clk 0:02:46]}  O-O {[%clk 0:02:41]} 9. Nd2 {[%clk 0:02:45]}  b6 {[%clk 0:02:40]} 10. g4 {[%clk 0:02:39]}  Ba6 {[%clk 0:02:39]} 11. Nc6 {[%clk 0:02:36]}  Qe8 {[%clk 0:02:34]} 12. Nxb8 {[%clk 0:01:31]}  Nxb8 {[%clk 0:02:26]} 13. Bxa6 {[%clk 0:01:28]}  Nxa6 {[%clk 0:02:25]} 14. Qe2 {[%clk 0:01:29]}  f5 {[%clk 0:02:23]} 15. Qxa6 {[%clk 0:01:28]}  fxg4 {[%clk 0:02:16]} 16. Qe2 {[%clk 0:01:25]}  h5 {[%clk 0:02:15]} 17. b3 {[%clk 0:01:13]}  Qg6 {[%clk 0:02:14]} 18. e4 {[%clk 0:01:12]}  Rf7 {[%clk 0:02:10]} 19. f5 {[%clk 0:01:06]}  exf5 {[%clk 0:02:04]} 20. exd5 {[%clk 0:01:07]}  Bd6 {[%clk 0:02:00]} 21. Nc4 {[%clk 0:01:05]}  f4 {[%clk 0:01:51]} 22. Nxd6 {[%clk 0:01:03]}  Qxd6 {[%clk 0:01:49]} 23. Qe6 {[%clk 0:00:58]}  Rd8 {[%clk 0:01:38]} 24. Rxf4 {[%clk 0:00:52]}  Qxe6 {[%clk 0:01:35]} 25. dxe6 {[%clk 0:00:52]}  Rxf4 {[%clk 0:01:28]} 26. Bxf4 {[%clk 0:00:51]}  cxd4 {[%clk 0:01:28]} 27. Rd1 {[%clk 0:00:42]}  d3 {[%clk 0:01:23]} 28. e7 {[%clk 0:00:42]}  Re8 {[%clk 0:01:22]} 29. Bg5 {[%clk 0:00:42]}  Kf7 {[%clk 0:01:20]} 30. Rxd3 {[%clk 0:00:42]}  Kg6 {[%clk 0:01:20]} 31. Rd8 {[%clk 0:00:41]}  Kf7 {[%clk 0:01:17]} 32. Kf2 {[%clk 0:00:41]}  g6 {[%clk 0:01:13]} 33. Kg3 {[%clk 0:00:41]}  a6 {[%clk 0:01:12]} 34. c4 {[%clk 0:00:41]}  b5 {[%clk 0:01:11]} 35. c5 {[%clk 0:00:40]}  Rxe7 {[%clk 0:01:10]} 36. Bxe7 {[%clk 0:00:40]}  Kxe7 {[%clk 0:01:10]} 37. Rd6 {[%clk 0:00:40]}  a5 {[%clk 0:01:10]} 38. Rxg6 {[%clk 0:00:40]} 1-0


[Site "https://www.chess.com"]

[Event "Titled Tuesday Blitz March 07 Late 2023"]
[White "Perske, Thore"]
[Black "Fajdetic, Hrvoje"]
[WhiteFideId "12902195"]
[BlackFideId "14501945"]
[WhiteElo "2336"]
[BlackElo "2185"]
[Result "1-0"]
[Round "08"]
[TimeControl "180+2"]
[Date "2023.03.07"]
[WhiteClock "0:01:37"]
[BlackClock "0:02:01"]

1. e4 {[%clk 0:03:00]}  c5 {[%clk 0:02:57]} 2. Nf3 {[%clk 0:03:00]}  a6 {[%clk 0:02:57]} 3. g3 {[%clk 0:03:00]}  g6 {[%clk 0:02:54]} 4. Bg2 {[%clk 0:03:00]}  Bg7 {[%clk 0:02:55]} 5. O-O {[%clk 0:03:00]}  e5 {[%clk 0:02:55]} 6. a4 {[%clk 0:02:59]}  b6 {[%clk 0:02:53]} 7. d3 {[%clk 0:02:59]}  Ne7 {[%clk 0:02:51]} 8. Nc3 {[%clk 0:02:59]}  d6 {[%clk 0:02:51]} 9. Nd2 {[%clk 0:02:59]}  O-O {[%clk 0:02:51]} 10. Nc4 {[%clk 0:02:59]}  Nbc6 {[%clk 0:02:49]} 11. f4 {[%clk 0:02:52]}  f5 {[%clk 0:02:37]} 12. Nd5 {[%clk 0:02:48]}  Nxd5 {[%clk 0:02:30]} 13. exd5 {[%clk 0:02:44]}  Ne7 {[%clk 0:02:29]} 14. fxe5 {[%clk 0:02:36]}  b5 {[%clk 0:02:20]} 15. axb5 {[%clk 0:02:07]}  Bb7 {[%clk 0:02:20]} 16. exd6 {[%clk 0:01:55]}  Nxd5 {[%clk 0:02:20]} 17. bxa6 {[%clk 0:01:55]}  Bc6 {[%clk 0:02:15]} 18. c3 {[%clk 0:01:50]}  Ra7 {[%clk 0:02:03]} 19. Qb3 {[%clk 0:01:47]}  Kh8 {[%clk 0:02:01]} 20. Na5 {[%clk 0:01:37]} 1-0


[Site "https://www.chess.com"]

[Event "Titled Tuesday Blitz March 07 Late 2023"]
[White "Davidson, Kevin"]
[Black "Sai Han Thiha"]
[WhiteFideId "2056810"]
[BlackFideId "13012290"]
[WhiteElo "2151"]
[BlackElo "1954"]
[Result "0-1"]
[Round "08"]
[TimeControl "180+2"]
[Date "2023.03.07"]
[WhiteClock "0:00:03"]
[BlackClock "0:00:09"]

1. e4 {[%clk 0:03:00]}  c6 {[%clk 0:03:00]} 2. d4 {[%clk 0:02:59]}  d5 {[%clk 0:03:01]} 3. e5 {[%clk 0:02:59]}  c5 {[%clk 0:03:01]} 4. dxc5 {[%clk 0:03:00]}  e6 {[%clk 0:03:01]} 5. a3 {[%clk 0:03:00]}  Bxc5 {[%clk 0:03:02]} 6. Qg4 {[%clk 0:03:01]}  Ne7 {[%clk 0:02:47]} 7. Nf3 {[%clk 0:03:00]}  Nf5 {[%clk 0:02:30]} 8. Bd3 {[%clk 0:02:58]}  h5 {[%clk 0:02:27]} 9. Qf4 {[%clk 0:02:49]}  Nc6 {[%clk 0:02:05]} 10. O-O {[%clk 0:02:48]}  a5 {[%clk 0:01:48]} 11. Nc3 {[%clk 0:02:45]}  O-O {[%clk 0:01:39]} 12. Bd2 {[%clk 0:02:33]}  Nce7 {[%clk 0:01:37]} 13. Nb5 {[%clk 0:01:56]}  Ng6 {[%clk 0:01:35]} 14. Qg5 {[%clk 0:01:52]}  Qxg5 {[%clk 0:01:27]} 15. Bxg5 {[%clk 0:01:52]}  Nge7 {[%clk 0:01:10]} 16. Rac1 {[%clk 0:01:23]}  f6 {[%clk 0:01:07]} 17. Bd2 {[%clk 0:01:16]}  Bd7 {[%clk 0:01:02]} 18. b4 {[%clk 0:00:45]}  axb4 {[%clk 0:00:55]} 19. axb4 {[%clk 0:00:46]}  Bb6 {[%clk 0:00:54]} 20. Ra1 {[%clk 0:00:43]}  Rfc8 {[%clk 0:00:39]} 21. c3 {[%clk 0:00:17]}  Kf7 {[%clk 0:00:36]} 22. Rfe1 {[%clk 0:00:17]}  Rxa1 {[%clk 0:00:32]} 23. Rxa1 {[%clk 0:00:16]}  Bxb5 {[%clk 0:00:24]} 24. Bxb5 {[%clk 0:00:15]}  Nc6 {[%clk 0:00:25]} 25. Re1 {[%clk 0:00:10]}  Bd8 {[%clk 0:00:13]} 26. Bd3 {[%clk 0:00:10]}  fxe5 {[%clk 0:00:12]} 27. Nxe5+ {[%clk 0:00:09]}  Nxe5 {[%clk 0:00:13]} 28. Rxe5 {[%clk 0:00:09]}  Bf6 {[%clk 0:00:14]} 29. Re1 {[%clk 0:00:04]}  Bxc3 {[%clk 0:00:10]} 30. Rc1 {[%clk 0:00:04]}  d4 {[%clk 0:00:11]} 31. Be4 {[%clk 0:00:02]}  Nd6 {[%clk 0:00:11]} 32. Bf3 {[%clk 0:00:01]}  Rc4 {[%clk 0:00:11]} 33. Bxh5+ {[%clk 0:00:01]}  g6 {[%clk 0:00:10]} 34. Bxc3 {[%clk 0:00:02]}  Rxc3 {[%clk 0:00:06]} 35. Rxc3 {[%clk 0:00:01]}  dxc3 {[%clk 0:00:07]} 36. Bd1 {[%clk 0:00:01]}  Nc4 {[%clk 0:00:07]} 37. Kf1 {[%clk 0:00:02]}  Na3 {[%clk 0:00:07]} 38. Ke2 {[%clk 0:00:01]}  c2 {[%clk 0:00:08]} 39. Bxc2 {[%clk 0:00:01]}  Nxc2 {[%clk 0:00:09]} 40. b5 {[%clk 0:00:01]}  Nd4+ {[%clk 0:00:09]} 41. Kd3 {[%clk 0:00:01]}  Nxb5 {[%clk 0:00:10]} 42. Ke4 {[%clk 0:00:02]}  Kf6 {[%clk 0:00:10]} 43. f4 {[%clk 0:00:02]}  Nd6+ {[%clk 0:00:09]} 44. Kd4 {[%clk 0:00:02]}  b6 {[%clk 0:00:10]} 45. g4 {[%clk 0:00:02]}  Nb7 {[%clk 0:00:10]} 46. h4 {[%clk 0:00:02]}  Nd6 {[%clk 0:00:10]} 47. h5 {[%clk 0:00:01]}  gxh5 {[%clk 0:00:10]} 48. gxh5 {[%clk 0:00:02]}  Kf5 {[%clk 0:00:11]} 49. h6 {[%clk 0:00:02]}  Kg6 {[%clk 0:00:11]} 50. Ke5 {[%clk 0:00:02]}  Nc4+ {[%clk 0:00:10]} 51. Kxe6 {[%clk 0:00:02]}  Kxh6 {[%clk 0:00:09]} 52. Kd5 {[%clk 0:00:02]}  Na5 {[%clk 0:00:07]} 53. f5 {[%clk 0:00:01]}  Kg7 {[%clk 0:00:07]} 54. Ke6 {[%clk 0:00:02]}  Kf8 {[%clk 0:00:07]} 55. f6 {[%clk 0:00:02]}  b5 {[%clk 0:00:07]} 56. Kd5 {[%clk 0:00:02]}  b4 {[%clk 0:00:08]} 57. Kd4 {[%clk 0:00:03]}  b3 {[%clk 0:00:09]} 58. Kc3 {[%clk 0:00:03]}  Kf7 {[%clk 0:00:09]} 0-1


[Site "https://www.chess.com"]

[Event "Titled Tuesday Blitz March 07 Late 2023"]
[White "Di Berardino, Diego Rafael"]
[Black "Rego, Pedro Filipe"]
[WhiteFideId "2105446"]
[BlackFideId "1904310"]
[WhiteElo "2432"]
[BlackElo "2193"]
[Result "0-1"]
[Round "08"]
[TimeControl "180+2"]
[Date "2023.03.07"]
[WhiteClock "0:00:05"]
[BlackClock "0:00:13"]

1. e4 {[%clk 0:03:00]}  e6 {[%clk 0:02:58]} 2. d3 {[%clk 0:02:55]}  c5 {[%clk 0:02:57]} 3. Nf3 {[%clk 0:02:54]}  Nc6 {[%clk 0:02:56]} 4. g3 {[%clk 0:02:54]}  Nf6 {[%clk 0:02:54]} 5. Bg2 {[%clk 0:02:54]}  d5 {[%clk 0:02:53]} 6. Nbd2 {[%clk 0:02:50]}  Be7 {[%clk 0:02:50]} 7. O-O {[%clk 0:02:51]}  O-O {[%clk 0:02:49]} 8. Re1 {[%clk 0:02:51]}  Qc7 {[%clk 0:02:42]} 9. e5 {[%clk 0:02:41]}  Nd7 {[%clk 0:02:41]} 10. Qe2 {[%clk 0:02:41]}  b5 {[%clk 0:02:30]} 11. Nf1 {[%clk 0:02:32]}  a5 {[%clk 0:02:23]} 12. Bf4 {[%clk 0:02:33]}  a4 {[%clk 0:02:20]} 13. Ne3 {[%clk 0:02:26]}  Ba6 {[%clk 0:02:09]} 14. Nxd5 {[%clk 0:02:18]}  exd5 {[%clk 0:02:06]} 15. e6 {[%clk 0:02:18]}  Qd8 {[%clk 0:01:59]} 16. exd7 {[%clk 0:02:16]}  Qxd7 {[%clk 0:01:59]} 17. Ne5 {[%clk 0:02:09]}  Nxe5 {[%clk 0:01:59]} 18. Bxe5 {[%clk 0:01:59]}  Rfe8 {[%clk 0:01:52]} 19. Qh5 {[%clk 0:01:50]}  Bb7 {[%clk 0:01:39]} 20. Re2 {[%clk 0:01:41]}  a3 {[%clk 0:01:36]} 21. b3 {[%clk 0:01:39]}  Rad8 {[%clk 0:01:29]} 22. Rae1 {[%clk 0:01:39]}  Bf8 {[%clk 0:01:24]} 23. Bh3 {[%clk 0:01:07]}  Qc6 {[%clk 0:01:20]} 24. d4 {[%clk 0:01:02]}  c4 {[%clk 0:01:05]} 25. Bg2 {[%clk 0:00:47]}  cxb3 {[%clk 0:00:59]} 26. cxb3 {[%clk 0:00:47]}  Bb4 {[%clk 0:00:46]} 27. Rd1 {[%clk 0:00:18]}  f6 {[%clk 0:00:43]} 28. Bf4 {[%clk 0:00:18]}  Rxe2 {[%clk 0:00:38]} 29. Qxe2 {[%clk 0:00:19]}  Re8 {[%clk 0:00:37]} 30. Bxd5+ {[%clk 0:00:18]}  Qxd5 {[%clk 0:00:21]} 31. Qxe8+ {[%clk 0:00:18]}  Bf8 {[%clk 0:00:22]} 32. Kf1 {[%clk 0:00:16]}  Qh1+ {[%clk 0:00:20]} 33. Ke2 {[%clk 0:00:16]}  Bf3+ {[%clk 0:00:20]} 34. Ke3 {[%clk 0:00:16]}  Qxd1 {[%clk 0:00:17]} 35. Qe6+ {[%clk 0:00:06]}  Kh8 {[%clk 0:00:16]} 36. Be5 {[%clk 0:00:05]}  Qe2+ {[%clk 0:00:13]} 37. Kf4 {[%clk 0:00:05]}  Qe4# {[%clk 0:00:13]} 0-1


[Site "https://www.chess.com"]

[Event "Titled Tuesday Blitz March 07 Late 2023"]
[White "Ismagilov, Damir"]
[Black "Rios Escobar, Adan"]
[WhiteFideId "34199982"]
[BlackFideId "3403645"]
[WhiteElo "2078"]
[BlackElo "2375"]
[Result "1-0"]
[Round "08"]
[TimeControl "180+2"]
[Date "2023.03.07"]
[WhiteClock "0:00:51"]
[BlackClock "0:00:08"]

1. d4 {[%clk 0:03:00]}  Nf6 {[%clk 0:02:52]} 2. c4 {[%clk 0:03:01]}  g6 {[%clk 0:02:52]} 3. h4 {[%clk 0:03:01]}  Bg7 {[%clk 0:02:50]} 4. Nc3 {[%clk 0:03:00]}  d6 {[%clk 0:02:46]} 5. e4 {[%clk 0:03:00]}  Nc6 {[%clk 0:02:42]} 6. Nge2 {[%clk 0:02:59]}  O-O {[%clk 0:02:36]} 7. f3 {[%clk 0:02:45]}  e5 {[%clk 0:02:36]} 8. d5 {[%clk 0:02:43]}  Nd4 {[%clk 0:02:37]} 9. Be3 {[%clk 0:02:36]}  c5 {[%clk 0:02:36]} 10. dxc6 {[%clk 0:02:32]}  Nxc6 {[%clk 0:02:29]} 11. Qd2 {[%clk 0:02:30]}  Be6 {[%clk 0:02:29]} 12. Nd5 {[%clk 0:02:30]}  a6 {[%clk 0:01:24]} 13. Nec3 {[%clk 0:02:18]}  Nh5 {[%clk 0:01:22]} 14. O-O-O {[%clk 0:01:58]}  Ng3 {[%clk 0:01:04]} 15. Rg1 {[%clk 0:01:52]}  Nxf1 {[%clk 0:01:04]} 16. Rgxf1 {[%clk 0:01:47]}  b5 {[%clk 0:01:04]} 17. Nb6 {[%clk 0:01:37]}  Rb8 {[%clk 0:00:53]} 18. Qxd6 {[%clk 0:01:36]}  Nd4 {[%clk 0:00:43]} 19. Qxd8 {[%clk 0:01:17]}  Rfxd8 {[%clk 0:00:44]} 20. c5 {[%clk 0:01:17]}  b4 {[%clk 0:00:35]} 21. Ncd5 {[%clk 0:01:12]}  Bf8 {[%clk 0:00:33]} 22. c6 {[%clk 0:01:07]}  Nxc6 {[%clk 0:00:29]} 23. Kb1 {[%clk 0:01:01]}  a5 {[%clk 0:00:29]} 24. Bg5 {[%clk 0:00:54]}  Bxd5 {[%clk 0:00:09]} 25. exd5 {[%clk 0:00:51]}  Ne7 {[%clk 0:00:04]} 26. d6 {[%clk 0:00:49]}  Rxb6 {[%clk 0:00:04]} 27. dxe7 {[%clk 0:00:47]}  Rxd1+ {[%clk 0:00:03]} 28. Rxd1 {[%clk 0:00:48]}  Bxe7 {[%clk 0:00:02]} 29. Bxe7 {[%clk 0:00:49]}  f5 {[%clk 0:00:01]} 30. Bd8 {[%clk 0:00:47]}  Kf7 {[%clk 0:00:02]} 31. Bxb6 {[%clk 0:00:47]}  a4 {[%clk 0:00:01]} 32. Ba5 {[%clk 0:00:48]}  b3 {[%clk 0:00:02]} 33. axb3 {[%clk 0:00:48]}  axb3 {[%clk 0:00:03]} 34. Rd3 {[%clk 0:00:48]}  e4 {[%clk 0:00:04]} 35. Rxb3 {[%clk 0:00:49]}  exf3 {[%clk 0:00:04]} 36. Rxf3 {[%clk 0:00:49]}  Kg7 {[%clk 0:00:05]} 37. b4 {[%clk 0:00:50]}  Kh6 {[%clk 0:00:06]} 38. b5 {[%clk 0:00:51]}  Kh5 {[%clk 0:00:06]} 39. b6 {[%clk 0:00:51]}  h6 {[%clk 0:00:07]} 40. b7 {[%clk 0:00:51]}  f4 {[%clk 0:00:08]} 41. b8=Q {[%clk 0:00:51]}  g5 {[%clk 0:00:08]} 42. Qe8+ {[%clk 0:00:51]}  Kg4 {[%clk 0:00:08]} 43. Qe6+ {[%clk 0:00:52]}  Kh5 {[%clk 0:00:08]} 44. hxg5 {[%clk 0:00:51]}  Kxg5 {[%clk 0:00:08]} 45. Bd8+ {[%clk 0:00:51]}  Kh5 {[%clk 0:00:08]} 46. Rh3# {[%clk 0:00:51]} 1-0


[Site "https://www.chess.com"]

[Event "Titled Tuesday Blitz March 07 Late 2023"]
[White "Dragomirescu, Angela"]
[Black "sissahungrychess"]
[WhiteFideId "1209914"]
[WhiteElo "2171"]
[BlackElo "2370"]
[Result "1-0"]
[Round "08"]
[TimeControl "180+2"]
[Date "2023.03.07"]
[WhiteClock "0:01:56"]
[BlackClock "0:01:42"]

1. e4 {[%clk 0:03:00]}  c5 {[%clk 0:03:00]} 2. Nf3 {[%clk 0:03:01]}  d6 {[%clk 0:03:00]} 3. d4 {[%clk 0:03:01]}  cxd4 {[%clk 0:03:01]} 4. Nxd4 {[%clk 0:03:02]}  Nf6 {[%clk 0:03:01]} 5. Nc3 {[%clk 0:03:03]}  a6 {[%clk 0:03:02]} 6. Bg5 {[%clk 0:03:04]}  e6 {[%clk 0:03:02]} 7. f4 {[%clk 0:03:04]}  Qb6 {[%clk 0:03:02]} 8. Qd2 {[%clk 0:03:04]}  Qxb2 {[%clk 0:03:03]} 9. Rb1 {[%clk 0:03:04]}  Qa3 {[%clk 0:03:03]} 10. e5 {[%clk 0:03:05]}  h6 {[%clk 0:03:03]} 11. Bh4 {[%clk 0:03:06]}  dxe5 {[%clk 0:03:04]} 12. fxe5 {[%clk 0:03:07]}  Nfd7 {[%clk 0:03:04]} 13. Ne4 {[%clk 0:03:06]}  Qxa2 {[%clk 0:03:05]} 14. Rd1 {[%clk 0:03:07]}  Qd5 {[%clk 0:03:05]} 15. Qe3 {[%clk 0:03:07]}  Qxe5 {[%clk 0:03:00]} 16. Bg3 {[%clk 0:03:07]}  Qd5 {[%clk 0:02:55]} 17. c3 {[%clk 0:02:34]}  Bc5 {[%clk 0:02:48]} 18. Bd6 {[%clk 0:02:31]}  f5 {[%clk 0:02:09]} 19. Nxc5 {[%clk 0:02:20]}  Nxc5 {[%clk 0:02:02]} 20. Nf3 {[%clk 0:02:05]}  Qe4 {[%clk 0:01:52]} 21. Bxc5 {[%clk 0:02:03]}  Qxe3+ {[%clk 0:01:52]} 22. Bxe3 {[%clk 0:02:04]}  Bd7 {[%clk 0:01:52]} 23. Ne5 {[%clk 0:02:03]}  Bc6 {[%clk 0:01:48]} 24. Be2 {[%clk 0:02:00]}  Bd5 {[%clk 0:01:43]} 25. c4 {[%clk 0:01:58]}  Be4 {[%clk 0:01:42]} 26. Bh5+ {[%clk 0:01:56]} 1-0


[Site "https://www.chess.com"]